bitfinex/quotes_SOLUSD_20250310
["timestamp","ask_amount","ask_price","bid_price","bid_amount"]
[1741627752613,9.98e-05,119.11,119.1,105.50884458]
[1741627753084,9.98e-05,119.11,119.1,56.95257229]
[1741627753682,3.905e-05,119.12,119.1,105.50884458]
[1741627753902,3.905e-05,119.12,119.11,48.55627229]
[1741627754107,5.503e-05,119.13,119.11,152.35627229]
[1741627754431,5.503e-05,119.13,119.12,48.55627229]
[1741627754719,5.503e-05,119.13,119.11,56.95157229]
[1741627755004,222.42,119.12,119.11,56.95157229]
[1741627755178,222.42,119.12,119.08,8.3977]
[1741627755380,48.69843386,119.11,119.06,48.55627229]
[1741627755594,48.55627229,119.1,119.05,56.95607229]
[1741627755908,48.55627229,119.09,119.04,48.55627229]
[1741627756213,0.28432314,119.07,119.02,48.61927229]
[1741627756388,0.28432314,119.07,119.05,20.0]
[1741627756579,13.24,119.08,119.06,8.399]
[1741627756780,13.24,119.08,119.07,20.0]
[1741627757306,13.24,119.08,119.07,68.55627229]
[1741627758216,13.24,119.08,119.07,20.0]
[1741627758586,13.24,119.08,119.06,48.55627229]
[1741627758982,13.24,119.08,119.07,48.55627229]
[1741627759589,13.24,119.08,119.06,48.55627229]
[1741627760111,13.24,119.08,119.05,20.9994]
[1741627760112,13.24,119.08,119.05,48.55627229]
[1741627760608,13.24,119.08,119.04,8.4005]
[1741627760609,13.24,119.08,119.07,8.3984]
[1741627760819,13.24,119.08,119.06,56.95507229]
[1741627761009,13.24,119.08,119.04,21.0013]
[1741627761010,13.24,119.08,119.07,20.0]
[1741627761387,0.28432314,119.07,119.04,48.55627229]
[1741627761591,0.28432314,119.07,119.03,8.4011]
[1741627761903,61.79627229,119.08,119.03,56.95737229]
[1741627762108,13.24,119.08,119.03,56.95737229]
[1741627762306,13.24,119.08,119.02,48.61927229]
[1741627762307,0.28432314,119.07,119.02,48.61927229]
[1741627762495,48.84059543,119.07,119.02,8.4646]
[1741627762895,48.84059543,119.07,119.02,57.02087229]
[1741627763299,13.24,119.08,119.03,48.55627229]
[1741627763507,13.24,119.08,119.06,48.55627229]
[1741627764916,13.24,119.08,119.06,8.3986]
[1741627765091,13.24,119.08,119.07,20.0]
[1741627766700,13.24,119.08,119.07,48.55627229]
[1741627767017,13.24,119.08,119.07,76.95467229]
[1741627767217,13.2,119.1,119.07,76.95467229]
[1741627768113,13.2,119.1,119.07,28.3984]
[1741627768413,13.2,119.1,119.08,20.0]
[1741627768798,0.15210578,119.09,119.08,20.0]
[1741627769122,48.99270121,119.09,119.03,8.4012]
[1741627769320,0.43642892,119.09,119.05,48.55627229]
[1741627769700,0.43642892,119.09,119.03,56.95747229]
[1741627769894,0.28432314,119.06,119.02,0.063]
[1741627770310,48.84059543,119.06,119.02,20.063]
[1741627770717,222.48,119.05,119.02,20.063]
[1741627770919,13.2,119.04,119.02,28.4648]
[1741627771417,13.2,119.04,119.02,0.063]
[1741627771802,61.75627229,119.04,119.02,0.063]
[1741627772309,0.28432314,119.01,118.98,0.03]
[1741627772505,0.28432314,118.99,118.98,0.03]
[1741627772825,48.69843386,118.99,118.98,0.03]
[1741627773203,67.49024429,118.99,118.98,0.03]
[1741627773505,87.78724429,118.99,118.98,0.03]
[1741627773700,20.79181043,118.98,118.96,0.03]
[1741627773891,61.75627229,118.97,118.96,0.03]
[1741627774528,62.04059543,118.97,118.96,0.03]
[1741627774727,13.2,118.97,118.96,0.03]
[1741627775505,13.48432314,118.97,118.96,0.03]
[1741627775722,13.2,118.97,118.96,0.03]
[1741627775928,13.2,118.97,118.96,48.58627229]
[1741627777041,0.28432314,119.03,119.0,8.4033]
[1741627777634,0.28432314,119.01,118.98,8.4047]
[1741627778257,13.2,119.0,118.98,8.4047]
[1741627778545,61.75627229,119.0,118.96,8.4359]
[1741627778854,13.2,119.0,118.97,48.55627229]
[1741627779158,13.2,119.0,118.98,56.96097229]
[1741627779855,13.2,119.0,118.98,8.4047]
[1741627780172,13.2,119.0,118.99,48.55627229]
[1741627780661,13.2,119.0,118.98,8.4047]
[1741627780662,13.18,119.0,118.98,77.97287229]
[1741627780967,13.18,119.0,118.98,8.4047]
[1741627781166,13.18,119.0,118.99,48.55627229]
[1741627781829,222.48,119.05,119.02,20.0]
[1741627782045,222.48,119.05,119.03,48.55627229]
[1741627782833,235.66,119.05,119.03,48.55627229]
[1741627783254,235.66,119.05,119.02,8.4019]
[1741627783634,284.21627229,119.05,119.02,8.4019]
[1741627783888,235.66,119.05,119.02,56.95817229]
[1741627784045,235.66,119.05,119.02,77.96297229]
[1741627784260,235.66,119.05,119.02,56.95817229]
[1741627784463,235.66,119.05,119.03,20.0]
[1741627785138,235.66,119.05,119.02,8.4019]
[1741627785346,284.21627229,119.05,119.02,8.4019]
[1741627785554,0.28432314,119.04,118.99,69.56617229]
[1741627785731,0.28432314,119.04,119.0,8.4031]
[1741627785934,48.84059543,119.04,119.0,8.4031]
[1741627786122,0.28432314,119.04,119.0,56.95937229]
[1741627786478,235.66,119.05,119.01,48.55627229]
[1741627786833,284.21627229,119.05,119.0,29.4115]
[1741627787016,284.21627229,119.05,119.0,77.96777229]
[1741627787560,235.723,119.05,119.01,48.55627229]
[1741627788059,222.543,119.05,119.01,48.55627229]
[1741627788254,13.18,119.04,119.02,48.55627229]
[1741627788857,0.16442541,119.03,119.02,48.55627229]
[1741627789361,0.16442541,119.03,119.01,48.55627229]
[1741627789653,0.16442541,119.03,119.01,56.95877229]
[1741627790244,0.16442541,119.03,119.0,103.8]
[1741627790416,49.00502084,119.03,118.98,8.4044]
[1741627790611,49.00502084,119.03,118.98,48.55627229]
[1741627790808,48.55627229,119.01,118.96,56.99207229]
[1741627791341,8.85004855,119.03,118.96,56.99207229]
[1741627791342,0.16442541,119.03,118.99,68.55627229]
[1741627791629,0.16442541,119.03,119.0,8.4033]
[1741627792212,0.16442541,119.03,118.99,28.4037]
[1741627792423,0.16442541,119.03,118.96,48.58627229]
[1741627792424,48.55627229,119.01,118.96,48.58627229]
[1741627792809,48.84059543,119.02,118.97,48.55627229]
[1741627793218,48.55627229,119.01,118.96,56.99207229]
[1741627793420,222.6,119.0,118.96,56.99207229]
[1741627795127,222.6,119.0,118.96,8.4358]
[1741627795434,222.6,119.0,118.96,56.99237229]
[1741627795630,222.6,119.0,118.96,48.58627229]
[1741627795843,0.28432314,118.98,118.96,0.03]
[1741627796031,62.00059543,118.97,118.96,0.03]
[1741627796350,13.16,118.97,118.96,0.03]
[1741627796848,62.00059543,118.97,118.96,0.03]
[1741627797044,67.78629543,118.97,118.96,0.03]
[1741627797746,76.19169543,118.97,118.96,0.03]
[1741627798125,19.23002314,118.97,118.96,0.03]
[1741627798355,76.19169543,118.97,118.96,0.03]
[1741627799119,67.78629543,118.97,118.96,0.03]
[1741627800030,11.61196157,118.98,118.96,0.03]
[1741627800342,241.24964886,119.0,118.96,0.03]
[1741627800343,13.14,118.97,118.96,0.03]
[1741627800549,13.14,118.97,118.94,48.55627229]
[1741627800733,61.69627229,118.97,118.92,48.58627229]
[1741627800929,48.84059543,118.96,118.92,0.03]
[1741627801142,48.55627229,118.95,118.92,0.03]
[1741627801322,13.14,118.97,118.93,48.55627229]
[1741627801848,61.69627229,118.97,118.92,56.99497229]
[1741627802029,13.14,118.97,118.92,56.99497229]
[1741627802229,18.64964886,118.99,118.95,48.55627229]
[1741627802230,0.28432314,118.99,118.95,48.55627229]
[1741627802436,13.14,118.98,118.95,48.55627229]
[1741627803446,222.6,119.0,118.92,200.46712115]
[1741627803654,13.14,118.99,118.95,68.55627229]
[1741627803957,0.28432314,118.98,118.95,20.0]
[1741627804138,48.55627229,118.97,118.95,20.0]
[1741627804328,0.28432314,118.95,118.92,0.03]
[1741627804651,48.69843386,118.95,118.92,0.03]
[1741627804857,0.28432314,118.95,118.92,0.03]
[1741627805153,271.15627229,119.0,118.94,48.55627229]
[1741627805322,222.6,119.0,118.97,20.0]
[1741627806042,222.6,119.0,118.97,76.96157229]
[1741627806247,222.6,119.0,118.97,28.4053]
[1741627806248,235.74,119.0,118.97,28.4053]
[1741627806834,222.6,119.0,118.99,48.55627229]
[1741627807239,222.7,119.01,119.0,18.64964886]
[1741627807428,222.7,119.01,119.0,67.20592115]
[1741627807951,222.7,119.01,119.0,75.60922115]
[1741627808131,222.7,119.01,119.0,56.95957229]
[1741627808854,222.88013892,119.01,119.0,75.60922115]
[1741627809025,8.614e-05,119.02,119.01,18.64964886]
[1741627811445,13.12,119.02,119.01,20.0]
[1741627812045,13.12,119.02,119.01,76.95887229]
[1741627812349,13.12,119.02,119.0,48.55627229]
[1741627812554,13.12,119.02,119.0,56.95947229]
[1741627812936,13.12,119.02,119.01,48.55627229]
[1741627813460,13.12,119.02,119.01,20.0]
[1741627813630,13.12,119.02,119.01,68.55627229]
[1741627813832,13.12,119.02,118.96,8.4058]
[1741627813833,0.28432314,119.01,118.96,8.4058]
[1741627814037,61.67627229,119.02,118.97,48.55627229]
[1741627814230,13.12,119.02,119.01,20.0]
[1741627814448,13.12,119.02,119.01,68.55627229]
[1741627814840,235.74,119.02,119.01,68.55627229]
[1741627815043,4.85e-05,119.03,119.01,191.00592115]
[1741627815366,4.85e-05,119.03,119.02,67.20592115]
[1741627815535,2.93e-06,119.04,119.03,0.28432314]
[1741627815733,6.39e-06,119.07,119.06,51.574272]
[1741627815959,222.62,119.11,119.08,8.3977]
[1741627816134,222.62,119.11,119.08,152.35627229]
[1741627816336,222.62,119.11,119.07,8.3981]
[1741627816537,222.62,119.11,119.08,48.55627229]
[1741627816749,222.62,119.11,119.07,8.3981]
[1741627816960,222.62,119.11,119.08,20.0]
[1741627817343,222.62,119.11,119.08,191.00592115]
[1741627817645,225.51399237,119.15,119.13,2.0]
[1741627817854,0.0001,119.16,119.15,18.64964886]
[1741627818039,9.483e-05,119.18,119.17,38.64964886]
[1741627818237,248.07058966,119.19,119.17,68.55627229]
[1741627818435,248.21275123,119.19,119.12,103.8]
[1741627818646,248.21275123,119.19,119.14,20.0]
[1741627818647,0.14216157,119.18,119.14,20.0]
[1741627818848,248.07058966,119.19,119.14,123.8]
[1741627819162,248.07058966,119.19,119.17,20.0]
[1741627819369,248.07058966,119.19,119.15,18.933972]
[1741627819370,248.07058966,119.19,119.18,20.0]
[1741627819664,248.07058966,119.19,119.18,68.55627229]
[1741627819838,51.02117932,119.2,119.18,191.29024429]
[1741627820036,76.13594083,119.22,119.18,191.29024429]
[1741627820037,76.13594083,119.22,119.21,20.0]
[1741627820246,76.13594083,119.22,119.21,68.55627229]
[1741627820449,222.56,119.23,119.21,68.55627229]
[1741627820761,222.56,119.23,119.21,48.55627229]
[1741627820957,222.56,119.23,119.22,48.55627229]
[1741627821555,222.56,119.23,119.22,97.11254458]
[1741627821864,0.03,119.24,119.23,18.933972]
[1741627822068,0.063,119.28,119.27,20.0]
[1741627822358,0.063,119.28,119.27,68.55627229]
[1741627822734,0.063,119.28,119.27,135.76219344]
[1741627823165,0.03,119.32,119.27,135.76219344]
[1741627823338,0.03,119.32,119.31,48.55627229]
[1741627824269,0.03,119.32,119.3,48.55627229]
[1741627824864,0.03,119.32,119.24,82.18432314]
[1741627824865,222.48216157,119.31,119.27,48.55627229]
[1741627825044,222.34,119.31,119.28,48.55627229]
[1741627825240,222.34,119.31,119.3,48.55627229]
[1741627825635,222.34,119.31,119.25,122.44964886]
[1741627825636,222.34,119.31,119.28,68.55627229]
[1741627825843,222.34,119.31,119.26,20.0]
[1741627825844,0.14216157,119.3,119.26,20.0]
[1741627826065,20.28432314,119.26,119.19,103.8]
[1741627826363,20.28432314,119.26,119.17,48.55627229]
[1741627826364,48.55627229,119.23,119.17,48.55627229]
[1741627826558,270.89627229,119.22,119.15,103.8]
[1741627826760,276.59847229,119.22,119.16,48.55627229]
[1741627827067,276.59847229,119.22,119.17,48.55627229]
[1741627827068,228.0422,119.22,119.17,48.55627229]
[1741627827238,228.0422,119.22,119.19,48.55627229]
[1741627827440,228.0422,119.22,119.17,48.55627229]
[1741627827441,276.59847229,119.22,119.17,48.55627229]
[1741627827663,228.0422,119.22,119.2,48.55627229]
[1741627828346,228.0422,119.22,119.21,92.699793]
[1741627828551,228.0422,119.22,119.21,20.0]
[1741627828747,241.28143774,119.22,119.21,20.0]
[1741627828961,235.57923774,119.22,119.21,20.0]
[1741627829141,0.14216157,119.21,119.16,103.8]
[1741627829478,235.57923774,119.22,119.16,103.8]
[1741627829964,235.57923774,119.22,119.21,72.699793]
[1741627830173,222.51923774,119.22,119.21,195.14944186]
[1741627830471,222.51923774,119.22,119.21,176.499793]
[1741627831165,222.51923774,119.22,119.21,20.0]
[1741627831363,222.51923774,119.22,119.2,72.699793]
[1741627831545,222.51923774,119.22,119.21,72.699793]
[1741627831745,222.51923774,119.22,119.21,176.499793]
[1741627831946,222.51923774,119.22,119.21,92.699793]
[1741627832251,222.51923774,119.22,119.21,101.088293]
[1741627832561,222.51923774,119.22,119.21,92.699793]
[1741627832863,222.51923774,119.22,119.21,20.0]
[1741627833070,222.51923774,119.22,119.21,72.699793]
[1741627833367,222.51923774,119.22,119.21,176.499793]
[1741627833555,222.51923774,119.22,119.17,122.51264886]
[1741627833766,222.51923774,119.22,119.21,20.0]
[1741627833955,222.51923774,119.22,119.19,176.499793]
[1741627834265,222.51923774,119.22,119.21,92.699793]
[1741627836343,295.21903074,119.22,119.17,0.063]
[1741627836658,72.699793,119.19,119.17,0.063]
[1741627836994,85.88195457,119.18,119.17,0.063]
[1741627837175,86.02411614,119.18,119.17,0.063]
[1741627837381,13.04,119.18,119.17,0.063]
[1741627838369,110.466265,119.18,119.17,0.063]
[1741627838546,110.466265,119.18,119.11,72.699793]
[1741627838547,72.699793,119.16,119.11,72.699793]
[1741627838747,0.14216157,119.16,119.11,72.699793]
[1741627838943,0.14216157,119.16,119.13,20.0]
[1741627839170,0.14216157,119.17,119.13,72.699793]
[1741627839377,72.699793,119.16,119.11,72.699793]
[1741627839673,0.14216157,119.17,119.08,176.499793]
[1741627839674,72.699793,119.14,119.08,176.499793]
[1741627839871,222.24,119.13,119.09,72.699793]
[1741627840076,13.04,119.12,119.09,72.699793]
[1741627840461,13.04,119.12,119.08,176.499793]
[1741627840646,72.84195457,119.11,119.06,72.699793]
[1741627840844,0.14216157,119.1,119.05,72.699793]
[1741627841047,0.14216157,119.09,119.04,72.699793]
[1741627841241,79.12075457,119.08,119.03,72.699793]
[1741627841460,72.699793,119.07,119.02,72.699793]
[1741627841670,72.699793,119.07,119.0,103.8]
[1741627841671,85.739793,119.06,119.01,72.699793]
[1741627842178,85.739793,119.06,118.98,72.699793]
[1741627842179,72.699793,119.03,118.98,72.699793]
[1741627842490,222.3,119.02,118.98,72.699793]
[1741627842851,222.3,119.02,119.01,72.699793]
[1741627843073,222.3,119.02,119.01,176.499793]
[1741627843452,222.3,119.02,119.01,103.8]
[1741627843960,222.3,119.02,119.01,72.699793]
[1741627844465,222.3,119.02,118.99,72.699793]
[1741627844671,222.3,119.02,118.97,72.699793]
[1741627844672,230.7022,119.02,118.97,72.699793]
[1741627844872,303.401993,119.02,118.97,176.499793]
[1741627845176,0.28432314,119.01,118.94,0.03]
[1741627845363,72.699793,119.0,118.98,20.0]
[1741627845565,72.699793,119.0,118.94,103.83]
[1741627845566,72.699793,118.99,118.94,176.529793]
[1741627845765,13.04,118.98,118.94,0.03]
[1741627845960,72.84195457,118.95,118.94,0.03]
[1741627846388,81.39091614,118.95,118.94,0.03]
[1741627846876,81.24875457,118.95,118.94,0.03]
[1741627847076,81.24875457,118.95,118.92,0.03]
[1741627847077,100.040565,118.95,118.92,0.03]
[1741627847285,72.699793,118.94,118.92,0.03]
[1741627847457,222.38,118.93,118.92,0.03]
[1741627847779,222.52216157,118.93,118.92,0.03]
[1741627848159,295.36411614,118.93,118.92,0.03]
[1741627848354,322.422065,118.93,118.92,0.03]
[1741627848775,79.14091614,118.91,118.9,0.0001]
[1741627848977,18.79181043,118.9,118.89,0.03]
[1741627849190,18.79181043,118.88,118.82,0.063]
[1741627849366,0.28432314,118.85,118.82,0.063]
[1741627849566,235.54,118.84,118.82,0.063]
[1741627849766,235.54,118.84,118.82,20.063]
[1741627850071,235.54,118.84,118.82,0.063]
[1741627850277,81.115093,118.83,118.82,0.063]
[1741627850481,222.5,118.84,118.82,0.063]
[1741627850653,13.04,118.83,118.82,0.063]
[1741627851165,222.5,118.84,118.82,92.762793]
[1741627851386,235.54,118.84,118.83,72.699793]
[1741627851753,235.54,118.84,118.83,20.0]
[1741627852007,308.239793,118.84,118.83,20.0]
[1741627852262,0.28432314,118.83,118.82,0.063]
[1741627852462,18.64964886,118.82,118.74,103.8]
[1741627852680,0.28432314,118.79,118.72,110.65350195]
[1741627852986,13.04,118.78,118.74,72.699793]
[1741627853163,13.04,118.78,118.73,72.699793]
[1741627853363,13.04,118.78,118.74,72.699793]
[1741627853774,72.699793,118.77,118.72,110.65350195]
[1741627854074,72.699793,118.77,118.75,20.0]
[1741627854281,72.699793,118.77,118.72,79.05329495]
[1741627854465,72.84195457,118.79,118.74,72.699793]
[1741627854779,72.84195457,118.79,118.75,20.0]
[1741627854780,13.04,118.78,118.75,20.0]
[1741627854979,72.699793,118.77,118.75,20.0]
[1741627855182,85.739793,118.78,118.76,20.0]
[1741627855387,13.04,118.78,118.76,20.0]
[1741627855691,235.78,118.78,118.77,72.699793]
[1741627855903,222.74,118.78,118.77,176.499793]
[1741627856356,222.74,118.78,118.77,195.433765]
[1741627856560,6.4567,118.85,118.8,20.0]
[1741627856561,222.74,118.83,118.8,20.0]
[1741627856789,222.74,118.83,118.82,72.699793]
[1741627856996,222.74,118.83,118.82,176.499793]
[1741627857493,222.74,118.83,118.82,195.14944186]
[1741627858365,222.74,118.83,118.82,203.56544186]
[1741627858591,13.04,118.86,118.85,20.0]
[1741627858592,222.84,118.86,118.85,20.0]
[1741627858765,222.84,118.86,118.85,94.46889458]
[1741627859294,222.84,118.86,118.82,81.115793]
[1741627859472,222.84,118.86,118.83,31.64675139]
[1741627859674,72.699793,118.85,118.81,86.16889458]
[1741627859873,13.04,118.84,118.81,86.16889458]
[1741627860067,13.04,118.84,118.81,94.58549458]
[1741627860271,222.84,118.86,118.83,72.699793]
[1741627860684,222.84,118.86,118.82,8.416]
[1741627860990,222.84,118.86,118.85,20.0]
[1741627861415,13.04,118.92,118.89,20.0]
[1741627861690,13.04,118.92,118.9,72.699793]
[1741627862189,13.04,118.92,118.91,92.699793]
[1741627862366,0.21747623,118.94,118.91,178.86868758]
[1741627862568,0.21747623,118.94,118.92,81.108793]
[1741627862787,0.21747623,118.94,118.92,167.27768758]
[1741627862985,72.91726923,118.94,118.91,20.0]
[1741627863289,72.699793,118.92,118.87,81.111993]
[1741627863491,72.699793,118.89,118.86,86.16889458]
[1741627863681,13.04,118.88,118.85,8.4139]
[1741627863868,13.02,118.88,118.84,86.16889458]
[1741627864067,13.02,118.88,118.81,8.4167]
[1741627864266,13.02,118.88,118.81,115.62749458]
[1741627864500,0.28432314,118.87,118.81,86.16889458]
[1741627864793,0.14216157,118.87,118.84,20.0]
[1741627865009,222.82,118.86,118.85,20.0]
[1741627865290,0.14216157,118.85,118.8,72.699793]
[1741627865495,295.519793,118.86,118.79,94.58689458]
[1741627865698,222.82,118.86,118.83,20.0]
[1741627865887,222.82,118.86,118.85,20.0]
[1741627866072,19.60365719,118.93,118.85,179.15301072]
[1741627866266,223.02945719,118.93,118.91,72.699793]
[1741627866465,295.72925019,118.93,118.88,72.699793]
[1741627866681,72.699793,118.91,118.89,20.0]
[1741627866901,13.083,118.92,118.9,20.0]
[1741627867194,0.063,118.92,118.9,178.86868758]
[1741627867398,13.02,118.91,118.86,86.16889458]
[1741627867576,13.02,118.91,118.9,20.0]
[1741627867898,85.719793,118.91,118.89,20.0]
[1741627868063,13.02,118.91,118.89,20.0]
[1741627868263,85.719793,118.91,118.89,20.0]
[1741627868489,85.719793,118.91,118.88,20.0]
[1741627868490,72.699793,118.9,118.88,20.0]
[1741627868878,0.16204304,118.9,118.88,72.699793]
[1741627869097,0.16204304,118.9,118.89,20.0]
[1741627869582,81.55655918,118.9,118.83,86.16889458]
[1741627869778,72.699793,118.88,118.83,158.86868758]
[1741627869983,72.699793,118.88,118.86,20.0]
[1741627870388,73.00399761,118.9,118.85,72.699793]
[1741627870597,72.699793,118.89,118.87,20.0]
[1741627870796,73.00399761,118.9,118.87,20.0]
[1741627871011,222.84,118.88,118.87,20.0]
[1741627871183,222.84,118.88,118.87,177.51833644]
[1741627871382,0.16204304,118.9,118.88,18.64964886]
[1741627871708,0.16204304,118.9,118.89,20.0]
[1741627872079,0.16204304,118.9,118.89,72.699793]
[1741627872284,0.16204304,118.9,118.83,8.4153]
[1741627872508,0.16204304,118.9,118.87,20.0]
[1741627872509,0.30420461,118.9,118.87,20.0]
[1741627872687,0.16204304,118.9,118.87,72.699793]
[1741627872878,0.16204304,118.9,118.89,72.699793]
[1741627873910,72.86183604,118.9,118.84,8.4142]
[1741627874081,13.02,118.89,118.84,8.4142]
[1741627874404,13.02,118.89,118.88,72.699793]
[1741627874584,0.16204304,118.9,118.88,81.111593]
[1741627874787,0.16204304,118.9,118.88,86.16889458]
[1741627874991,0.16204304,118.9,118.89,72.699793]
[1741627875307,0.16204304,118.9,118.88,158.86868758]
[1741627875814,0.16204304,118.9,118.88,167.28028758]
[1741627876006,0.16204304,118.9,118.89,92.699793]
[1741627876420,4.304e-05,118.9,118.89,197.80265958]
[1741627876580,4.304e-05,118.9,118.89,205.92943644]
[1741627876976,0.23386946,118.92,118.91,0.28432314]
[1741627876977,5.466e-05,118.92,118.91,0.28432314]
[1741627877196,0.22041221,118.94,118.93,20.0]
[1741627877907,72.92020521,118.94,118.89,81.110893]
[1741627878085,85.699793,118.93,118.89,8.4111]
[1741627878280,85.699793,118.93,118.88,81.111293]
[1741627878495,72.699793,118.91,118.87,86.16889458]
[1741627878790,18.933972,118.87,118.81,0.03]
[1741627878988,308.479793,118.86,118.81,81.146493]
[1741627879189,308.479793,118.86,118.81,158.89868758]
[1741627879394,72.98411614,118.85,118.81,0.03]
[1741627879697,72.84195457,118.83,118.81,0.03]
[1741627879899,72.84195457,118.84,118.81,0.03]
[1741627880103,0.14216157,118.84,118.81,0.03]
[1741627880304,72.98411614,118.84,118.81,0.03]
[1741627880782,72.84195457,118.84,118.81,0.03]
[1741627880982,0.14216157,118.83,118.81,0.03]
[1741627881203,18.79181043,118.82,118.81,0.03]
[1741627881410,91.49160343,118.82,118.81,0.03]
[1741627881593,235.78,118.86,118.81,72.729793]
[1741627881783,235.92216157,118.86,118.85,20.0]
[1741627882044,235.78,118.86,118.85,20.0]
[1741627882208,222.78,118.86,118.85,177.51833644]
[1741627882505,222.78,118.86,118.85,185.93223644]
[1741627883007,222.78,118.86,118.85,158.86868758]
[1741627883209,222.78,118.86,118.85,86.16889458]
[1741627883503,235.78,118.86,118.85,20.0]
[1741627883709,222.78,118.86,118.85,158.86868758]
[1741627884006,222.78,118.86,118.85,86.16889458]
[1741627884207,222.78,118.86,118.82,72.699793]
[1741627884700,222.78,118.86,118.85,20.0]
[1741627885909,222.78,118.86,118.84,72.699793]
[1741627886305,222.78,118.86,118.85,20.0]
[1741627886491,222.78,118.86,118.85,158.86868758]
[1741627886820,0.063,118.9,118.89,20.0]
[1741627886989,13.063,118.9,118.89,20.0]
[1741627887189,91.633765,118.93,118.91,20.0]
[1741627887398,222.86,118.92,118.91,20.0]
[1741627887596,222.86,118.92,118.91,178.86868758]
[1741627887891,222.86,118.92,118.91,20.0]
[1741627888100,222.86,118.92,118.91,92.699793]
[1741627888313,222.86,118.92,118.91,106.16889458]
[1741627888511,222.86,118.92,118.91,125.10286658]
[1741627888717,0.14671221,118.94,118.91,94.57859458]
[1741627889015,0.17450011,118.92,118.89,88.25709458]
[1741627889219,0.17450011,118.92,118.89,2.0882]
[1741627889548,0.17450011,118.92,118.91,20.0]
[1741627889692,0.17450011,118.92,118.91,158.86868758]
[1741627889894,0.17450011,118.92,118.91,86.16889458]
[1741627890108,0.31666168,118.92,118.89,2.0882]
[1741627890317,13.15450011,118.92,118.89,10.4993]
[1741627890517,0.17450011,118.92,118.91,20.0]
[1741627890695,0.17450011,118.92,118.91,28.4097]
[1741627891012,0.17450011,118.92,118.91,20.0]
[1741627891217,0.17450011,118.92,118.91,28.4097]
[1741627891419,0.17450011,118.92,118.91,47.343672]
[1741627891714,0.15682636,118.99,118.96,86.12083804]
[1741627891908,5.314e-05,118.98,118.97,18.933972]
[1741627892109,0.15682636,118.99,118.97,164.333558]
[1741627892427,0.17289715,119.0,118.99,20.64964886]
[1741627892606,0.17289715,119.0,118.99,18.64964886]
[1741627892796,0.17289715,119.0,118.99,99.75344186]
[1741627892993,0.17289715,119.0,118.99,81.103793]
[1741627893194,0.17289715,119.0,118.99,158.2363079]
[1741627893937,0.17289715,119.0,118.95,18.64964886]
[1741627893938,0.17289715,119.0,118.95,85.5365149]
[1741627894243,72.699793,118.98,118.93,158.2363079]
[1741627894440,12.98,118.97,118.95,72.699793]
[1741627894905,12.98,118.97,118.93,85.5365149]
[1741627894906,12.98,118.97,118.94,72.699793]
[1741627895105,94.085293,118.97,118.93,85.5365149]
[1741627895431,12.98,118.97,118.96,20.0]
[1741627895643,94.22775457,118.97,118.89,87.6247149]
[1741627895934,94.22775457,118.97,118.92,20.0]
[1741627895935,72.699793,118.94,118.92,20.0]
[1741627896237,222.72,118.93,118.92,20.0]
[1741627896441,222.72,118.93,118.89,87.6247149]
[1741627896647,81.108793,118.92,118.89,2.0882]
[1741627896850,72.699793,118.9,118.89,2.0882]
[1741627897013,0.14216157,118.89,118.88,0.063]
[1741627897214,72.699793,118.9,118.88,0.063]
[1741627897416,12.98,118.91,118.9,20.0]
[1741627897631,12.98,118.91,118.88,72.762793]
[1741627897844,12.98,118.91,118.9,92.699793]
[1741627898028,0.14216157,118.92,118.89,72.699793]
[1741627898234,222.72,118.93,118.89,72.699793]